fUST/lending_fUST_20250202
["ID","MTS","AMOUNT","RATE_DAILY","PERIOD"]
[351302472,1738510238739,-500.0,0.00016712,2]
[351302474,1738510238748,-662.27,0.00016712,2]
[351302476,1738510238757,-500.0,0.00016712,2]
[351302478,1738510238766,-500.0,0.00016712,2]
[351302480,1738510238776,-595.72,0.00016712,2]
[351302482,1738510238786,-791.78,0.00016712,2]
[351302484,1738510238795,-2185.32,0.00016849,2]
[351302486,1738510238804,-559.61583419,0.00016849,2]
[351302488,1738510238813,-500.0,0.00016849,2]
[351302490,1738510238823,-500.0,0.00016849,2]
[351302492,1738510238833,-2760.54,0.00016849,2]
[351302494,1738510238846,-500.0,0.00016849,2]
[351302496,1738510238855,-500.0,0.00016849,2]
[351302498,1738510238865,-183.82,0.00016849,2]
[351302500,1738510238874,-510.12,0.00016849,2]
[351302502,1738510238883,-544.55,0.00016849,2]
[351302504,1738510238893,-500.0,0.00016849,2]
[351302506,1738510238902,-546.86,0.00016849,2]
[351302508,1738510238911,-1699.3,0.00016849,2]
[351302511,1738510238920,-188.04945753,0.00016849,2]
[351302512,1738510238930,-662.27,0.00016849,2]
[351302515,1738510238940,-500.0,0.00016849,2]
[351302516,1738510238949,-500.0,0.00016849,2]
[351302518,1738510238959,-595.72,0.00016849,2]
[351302520,1738510238969,-791.78,0.00016849,2]
[351302523,1738510238978,-2185.32,0.00016986,2]
[351302525,1738510238988,-500.0,0.00016986,2]
[351302527,1738510238997,-500.0,0.00016986,2]
[351302529,1738510239006,-2760.54,0.00016986,2]
[351302531,1738510239016,-500.0,0.00016986,2]
[351302533,1738510239025,-500.0,0.00016986,2]
[351302535,1738510239034,-510.12,0.00016986,2]
[351302537,1738510239043,-544.55,0.00016986,2]
[351302539,1738510239052,-500.0,0.00016986,2]
[351302541,1738510239062,-546.86,0.00016986,2]
[351302543,1738510239071,-1699.3,0.00016986,2]
[351302545,1738510239080,-662.27,0.00016986,2]
[351302547,1738510239091,-500.0,0.00016986,2]
[351302548,1738510239100,-500.0,0.00016986,2]
[351302550,1738510239110,-595.72,0.00016986,2]
[351302552,1738510239121,-791.78,0.00016986,2]
[351302554,1738510239131,-2185.32,0.00017123,2]
[351302556,1738510239140,-500.0,0.00017123,2]
[351302558,1738510239150,-500.0,0.00017123,2]
[351302560,1738510239159,-2760.54,0.00017123,2]
[351302563,1738510239169,-500.0,0.00017123,2]
[351302565,1738510239178,-500.0,0.00017123,2]
[351302567,1738510239189,-510.12,0.00017123,2]
[351302569,1738510239198,-544.55,0.00017123,2]
[351302571,1738510239207,-500.0,0.00017123,2]
[351302573,1738510239217,-546.86,0.00017123,2]
[351302575,1738510239226,-1699.3,0.00017123,2]
[351302577,1738510239235,-662.27,0.00017123,2]
[351302579,1738510239245,-500.0,0.00017123,2]
[351302581,1738510239254,-500.0,0.00017123,2]
[351302583,1738510239263,-595.72,0.00017123,2]
[351302585,1738510239273,-791.78,0.00017123,2]
[351302587,1738510239283,-2185.32,0.0001726,2]
[351302589,1738510239293,-500.0,0.0001726,2]
[351302591,1738510239303,-500.0,0.0001726,2]
[351302593,1738510239313,-2760.54,0.0001726,2]
[351302595,1738510239322,-500.0,0.0001726,2]
[351302597,1738510239332,-500.0,0.0001726,2]
[351302599,1738510239342,-510.12,0.0001726,2]
[351302601,1738510239352,-544.55,0.0001726,2]
[351302603,1738510239361,-500.0,0.0001726,2]
[351302605,1738510239371,-546.86,0.0001726,2]
[351302607,1738510239380,-1699.3,0.0001726,2]
[351302609,1738510239390,-662.27,0.0001726,2]
[351302611,1738510239400,-500.0,0.0001726,2]
[351302613,1738510239410,-500.0,0.0001726,2]
[351302615,1738510239419,-595.72,0.0001726,2]
[351302617,1738510239428,-791.78,0.0001726,2]
[351302619,1738510239438,-2185.32,0.00017397,2]
[351302621,1738510239447,-500.0,0.00017397,2]
[351302623,1738510239457,-500.0,0.00017397,2]
[351302625,1738510239466,-2760.54,0.00017397,2]
[351302627,1738510239477,-500.0,0.00017397,2]
[351302629,1738510239487,-500.0,0.00017397,2]
[351302631,1738510239497,-510.12,0.00017397,2]
[351302634,1738510239507,-544.55,0.00017397,2]
[351302636,1738510239516,-500.0,0.00017397,2]
[351302637,1738510239525,-546.86,0.00017397,2]
[351302639,1738510239535,-1699.3,0.00017397,2]
[351302641,1738510239545,-662.27,0.00017397,2]
[351302644,1738510239555,-500.0,0.00017397,2]
[351302645,1738510239565,-500.0,0.00017397,2]
[351302647,1738510239574,-595.72,0.00017397,2]
[351302650,1738510239584,-791.78,0.00017397,2]
[351302652,1738510239595,-2185.32,0.00017534,2]
[351302653,1738510239604,-500.0,0.00017534,2]
[351302655,1738510239613,-500.0,0.00017534,2]
[351302657,1738510239623,-2760.54,0.00017534,2]
[351302659,1738510239633,-500.0,0.00017534,2]
[351302661,1738510239646,-500.0,0.00017534,2]
[351302663,1738510239655,-510.12,0.00017534,2]
[351302665,1738510239664,-544.55,0.00017534,2]
[351302667,1738510239674,-500.0,0.00017534,2]
[351302669,1738510239684,-546.86,0.00017534,2]
[351302671,1738510239694,-1699.3,0.00017534,2]
[351302673,1738510239704,-662.27,0.00017534,2]
[351302675,1738510239714,-500.0,0.00017534,2]
[351302677,1738510239723,-500.0,0.00017534,2]
[351302679,1738510239733,-595.72,0.00017534,2]
[351302682,1738510239742,-791.78,0.00017534,2]
[351302697,1738510239878,-160.0,0.0001767,2]
[351302699,1738510239889,-2185.32,0.00017671,2]
[351302703,1738510239899,-500.0,0.00017671,2]
[351302705,1738510239910,-500.0,0.00017671,2]
[351302707,1738510239920,-2760.54,0.00017671,2]
[351302709,1738510239930,-500.0,0.00017671,2]
[351302711,1738510239939,-500.0,0.00017671,2]
[351302713,1738510239950,-510.12,0.00017671,2]
[351302715,1738510239960,-544.55,0.00017671,2]
[351302717,1738510239970,-519.04667845,0.00017671,2]
[351302719,1738510239980,-546.86,0.00017671,2]
[351302721,1738510239990,-1699.3,0.00017671,2]
[351302723,1738510240001,-662.27,0.00017671,2]
[351302725,1738510240012,-500.0,0.00017671,2]
[351302727,1738510240022,-500.0,0.00017671,2]
[351302729,1738510240033,-595.72,0.00017671,2]
[351302731,1738510240043,-791.78,0.00017671,2]
[351302733,1738510240052,-160.0,0.00017691,2]
[351302735,1738510240062,-901.46,0.000177,2]
[351302737,1738510240072,-2185.32,0.00017808,2]
[351302739,1738510240082,-500.0,0.00017808,2]
[351302740,1738510240099,-453.21304829,0.00017808,2]
[351302741,1738510240109,-2760.54,0.00017808,2]
[351302742,1738510240122,-500.0,0.00017808,2]
[351302743,1738510240131,-500.0,0.00017808,2]
[351302744,1738510240140,-510.12,0.00017808,2]
[351302745,1738510240150,-544.55,0.00017808,2]
[351302746,1738510240160,-546.86,0.00017808,2]
[351302747,1738510240169,-1638.83568762,0.00017808,2]
[351302748,1738510240284,-1078.55,0.00016712,2]
[351302750,1738510240294,-60.46431238,0.00017808,2]
[351302751,1738510240303,-662.27,0.00017808,2]
[351302752,1738510240313,-500.0,0.00017808,2]
[351302753,1738510240322,-500.0,0.00017808,2]
[351302755,1738510240332,-595.72,0.00017808,2]
[351302757,1738510240346,-791.78,0.00017808,2]
[351302759,1738510240355,-172.6611236,0.0001781,2]
[351302761,1738510240364,-2185.32,0.00017945,2]
[351302763,1738510240374,-500.0,0.00017945,2]
[351302765,1738510240383,-2760.54,0.00017945,2]
[351302767,1738510240393,-500.0,0.00017945,2]
[351302769,1738510240402,-500.0,0.00017945,2]
[351302771,1738510240411,-510.12,0.00017945,2]
[351302773,1738510240421,-544.55,0.00017945,2]
[351302775,1738510240430,-546.86,0.00017945,2]
[351302777,1738510240440,-1699.3,0.00017945,2]
[351302779,1738510240449,-662.27,0.00017945,2]
[351302781,1738510240459,-500.0,0.00017945,2]
[351302783,1738510240469,-500.0,0.00017945,2]
[351302785,1738510240479,-595.72,0.00017945,2]
[351302787,1738510240488,-791.78,0.00017945,2]
[351302789,1738510240498,-420.0,0.00017963,2]
[351302791,1738510240508,-324.339375,0.00017989,2]
[351302793,1738510240518,-5456.36017067,0.0001799,2]
[351302795,1738510240528,-384.57401822,0.00017999,2]
[351302798,1738510240537,-21631.6364786,0.00018,5]
[351302799,1738510240547,-3668.40257796,0.00018,5]
[351302802,1738510240556,-255273.34492983,0.00018,15]
[351302888,1738510241344,-8147.274472,0.00018,15]
[351303497,1738510247338,-83639.664615,0.00018,15]
[351303515,1738510247508,-1078.55,0.00016849,2]
[351303517,1738510247518,-1078.55,0.00016986,2]
[351303519,1738510247527,-588.33015975,0.00017123,2]
[351303527,1738510247590,-490.21984025,0.00017123,2]
[351303529,1738510247602,-1078.55,0.0001726,2]
[351303531,1738510247611,-1078.55,0.00017397,2]
[351303533,1738510247621,-1078.55,0.00017534,2]
[351303535,1738510247630,-1078.55,0.00017671,2]
[351303537,1738510247640,-1078.55,0.00017808,2]
[351303539,1738510247650,-1078.55,0.00017945,2]
[351303541,1738510247659,-39077.52965537,0.00018,15]
[351303543,1738510247671,-439.9999998,0.00018,15]
[351303554,1738510247765,-140.00623587,0.00018,15]
[351303629,1738510248483,-14906.625833,0.00018,15]
[351306226,1738510995579,231.158718,0.00013973,2]
[351306280,1738511432772,-752.968,0.00016,2]
[351306282,1738511432782,-300.0,0.00016437,2]
[351306284,1738511432792,-500.0,0.00016438,2]
[351306286,1738511432801,-500.0,0.00016438,2]
[351306288,1738511432810,-500.0,0.00016438,2]
[351306290,1738511432819,-500.0,0.00016438,2]
[351306292,1738511432829,-500.0,0.00016438,2]
[351306294,1738511432839,-500.0,0.00016438,2]
[351306296,1738511432848,-500.0,0.00016438,2]
[351306298,1738511432857,-500.0,0.00016438,2]
[351306300,1738511432867,-1097.21,0.00016438,2]
[351306302,1738511432876,-500.0,0.00016438,2]
[351306304,1738511432885,-500.0,0.00016438,2]
[351306305,1738511432895,-500.0,0.00016438,2]
[351306307,1738511432904,-636.73,0.00016438,2]
[351306310,1738511432914,-500.0,0.00016438,2]
[351306311,1738511432923,-435.81,0.00016438,2]
[351306313,1738511432932,-500.0,0.00016438,2]
[351306315,1738511432942,-500.0,0.00016438,2]
[351306318,1738511432951,-500.0,0.00016438,2]
[351306319,1738511432961,-500.0,0.00016438,2]
[351306321,1738511432970,-1791.56,0.00016438,2]
[351306324,1738511432979,-500.0,0.00016438,2]
[351306325,1738511432989,-500.0,0.00016438,2]
[351306327,1738511432999,-500.0,0.00016438,2]
[351306330,1738511433009,-500.0,0.00016438,2]
[351306332,1738511433018,-500.0,0.00016438,2]
[351306333,1738511433027,-500.0,0.00016438,2]
[351306336,1738511433037,-6988.72,0.00016438,2]
[351306338,1738511433048,-500.0,0.00016573,2]
[351306340,1738511433058,-1183.71,0.00016573,2]
[351306342,1738511433069,-500.0,0.00016573,2]
[351306344,1738511433079,-500.0,0.00016573,2]
[351306346,1738511433089,-922.97,0.00016573,2]
[351306348,1738511433098,-500.0,0.00016573,2]
[351306363,1738511433235,-500.0,0.00016573,2]
[351306365,1738511433246,-500.0,0.00016573,2]
[351306367,1738511433255,-599.87,0.00016573,2]
[351306369,1738511433265,-500.0,0.00016573,2]
[351306371,1738511433275,-240.11262687,0.00016573,2]
[351306373,1738511433286,-500.0,0.00016573,2]
[351306375,1738511433296,-2790.84,0.00016574,2]
[351306377,1738511433306,-500.0,0.00016574,2]
[351306379,1738511433316,-500.0,0.00016575,2]
[351306381,1738511433325,-500.0,0.00016575,2]
[351306383,1738511433335,-500.0,0.00016575,2]
[351306385,1738511433345,-500.0,0.00016575,2]
[351306387,1738511433354,-500.0,0.00016575,2]
[351306389,1738511433363,-500.0,0.00016575,2]
[351306391,1738511433372,-1097.21,0.00016575,2]
[351306393,1738511433383,-500.0,0.00016575,2]
[351306395,1738511433392,-500.0,0.00016575,2]
[351306396,1738511433402,-500.0,0.00016575,2]
[351306397,1738511433412,-636.73,0.00016575,2]
[351306398,1738511433422,-500.0,0.00016575,2]
[351306399,1738511433431,-500.0,0.00016575,2]
[351306400,1738511433440,-500.0,0.00016575,2]
[351306401,1738511433450,-1791.56,0.00016575,2]
[351306402,1738511433459,-500.0,0.00016575,2]
[351306403,1738511433471,-500.0,0.00016575,2]
[351306404,1738511433481,-500.0,0.00016575,2]
[351306405,1738511433490,-500.0,0.00016575,2]
[351306406,1738511433500,-500.0,0.00016575,2]
[351306407,1738511433510,-6988.72,0.00016575,2]
[351306408,1738511433521,-500.0,0.0001671,2]
[351306409,1738511433531,-1183.71,0.0001671,2]
[351306410,1738511433541,-500.0,0.0001671,2]
[351306411,1738511433552,-205.7415564,0.0001671,2]
[351306412,1738511433656,-500.0,0.0001671,2]
[351306866,1738511438574,-2840.216625,0.00016407,2]
[351306868,1738511438584,-500.0,0.00016438,2]
[351306870,1738511438593,-1005.78,0.00016573,2]
[351306872,1738511438603,-500.0,0.00016575,2]
[351306874,1738511438613,-217.2284436,0.0001671,2]
[351306876,1738511438622,-500.0,0.0001671,2]
[351306878,1738511438633,-500.0,0.0001671,2]
[351306880,1738511438644,-500.0,0.0001671,2]
[351306882,1738511438654,-599.87,0.0001671,2]
[351306884,1738511438667,-500.0,0.0001671,2]
[351306886,1738511438677,-500.0,0.0001671,2]
[351306888,1738511438687,-1005.78,0.0001671,2]
[351306890,1738511438696,-2790.84,0.00016711,2]
[351306892,1738511438706,-500.0,0.00016711,2]
[351306894,1738511438715,-500.0,0.00016712,2]
[351306896,1738511438725,-377.67105683,0.00016712,2]
[351306898,1738511438734,-500.0,0.00016712,2]
[351306900,1738511438743,-508.07114575,0.00016712,2]
[351306902,1738511438753,-500.0,0.00016712,2]
[351306904,1738511438763,-500.0,0.00016712,2]
[351306907,1738511438772,-500.0,0.00016712,2]
[351306909,1738511438782,-636.73,0.00016712,2]
[351306911,1738511438791,-500.0,0.00016712,2]
[351306914,1738511438801,-500.0,0.00016712,2]
[351306917,1738511438810,-500.0,0.00016712,2]
[351306919,1738511438820,-1791.56,0.00016712,2]
[351306921,1738511438829,-500.0,0.00016712,2]
[351306923,1738511438838,-500.0,0.00016712,2]
[351306925,1738511438848,-500.0,0.00016712,2]
[351306927,1738511438857,-500.0,0.00016712,2]
[351306929,1738511438867,-283.73758022,0.00016712,2]
[351306931,1738511438876,-6988.72,0.00016712,2]
[351306933,1738511438889,-500.0,0.00016712,2]
[351306935,1738511438898,-537.0,0.00016819,2]
[351306937,1738511438908,-2043.0,0.00016819,2]
[351306939,1738511438917,-2302.0,0.00016819,2]
[351306940,1738511438927,-500.0,0.00016847,2]
[351306942,1738511438936,-1183.71,0.00016847,2]
[351306944,1738511438945,-500.0,0.00016847,2]
[351306947,1738511438955,-922.97,0.00016847,2]
[351306949,1738511438965,-500.0,0.00016847,2]
[351306951,1738511438977,-500.0,0.00016847,2]
[351306953,1738511438986,-500.0,0.00016847,2]
[351306954,1738511438995,-599.87,0.00016847,2]
[351306956,1738511439005,-500.0,0.00016847,2]
[351306959,1738511439014,-500.0,0.00016847,2]
[351306961,1738511439023,-1005.78,0.00016847,2]
[351306962,1738511439033,-358.53,0.00016848,2]
[351306965,1738511439042,-500.0,0.00016848,2]
[351306967,1738511439052,-500.0,0.00016848,2]
[351306969,1738511439062,-500.0,0.00016848,2]
[351306971,1738511439071,-500.0,0.00016848,2]
[351306973,1738511439081,-2790.84,0.00016848,2]
[351306974,1738511439091,-349.84602988,0.00016848,2]
[351306976,1738511439101,-500.0,0.00016848,2]
[351306979,1738511439110,-500.0,0.00016849,2]
[351306980,1738511439119,-500.0,0.00016849,2]
[351306982,1738511439129,-500.0,0.00016849,2]
[351306984,1738511439139,-500.0,0.00016849,2]
[351306987,1738511439149,-500.0,0.00016849,2]
[351306988,1738511439159,-636.73,0.00016849,2]
[351306990,1738511439168,-500.0,0.00016849,2]
[351306993,1738511439177,-500.0,0.00016849,2]
[351306994,1738511439187,-500.0,0.00016849,2]
[351306997,1738511439196,-1791.56,0.00016849,2]
[351306999,1738511439206,-500.0,0.00016849,2]
[351307001,1738511439215,-500.0,0.00016849,2]
[351307003,1738511439224,-500.0,0.00016849,2]
[351307004,1738511439233,-500.0,0.00016849,2]
[351307006,1738511439242,-6988.72,0.00016849,2]
[351307008,1738511439252,-500.0,0.00016849,2]
[351307010,1738511439262,-500.0,0.00016984,2]
[351307012,1738511439271,-1183.71,0.00016984,2]
[351307015,1738511439280,-500.0,0.00016984,2]
[351307016,1738511439290,-922.97,0.00016984,2]
[351307018,1738511439299,-500.0,0.00016984,2]
[351307020,1738511439308,-500.0,0.00016984,2]
[351307022,1738511439318,-500.0,0.00016984,2]
[351307024,1738511439327,-599.87,0.00016984,2]
[351307026,1738511439337,-500.0,0.00016984,2]
[351307028,1738511439346,-500.0,0.00016984,2]
[351307031,1738511439356,-1005.78,0.00016984,2]
[351307033,1738511439366,-272.69,0.00016985,2]
[351307035,1738511439376,-500.0,0.00016985,2]
[351307037,1738511439386,-500.0,0.00016985,2]
[351307039,1738511439395,-2790.84,0.00016985,2]
[351307041,1738511439404,-500.0,0.00016985,2]
[351307043,1738511439413,-500.0,0.00016986,2]
[351307045,1738511439423,-500.0,0.00016986,2]
[351307047,1738511439432,-500.0,0.00016986,2]
[351307049,1738511439441,-500.0,0.00016986,2]
[351307051,1738511439451,-500.0,0.00016986,2]
[351307053,1738511439461,-636.73,0.00016986,2]
[351307055,1738511439470,-500.0,0.00016986,2]
[351307057,1738511439481,-500.0,0.00016986,2]
[351307059,1738511439491,-500.0,0.00016986,2]
[351307061,1738511439501,-1791.56,0.00016986,2]
[351307063,1738511439511,-500.0,0.00016986,2]
[351307065,1738511439521,-500.0,0.00016986,2]
[351307067,1738511439531,-500.0,0.00016986,2]
[351307069,1738511439540,-500.0,0.00016986,2]
[351307071,1738511439550,-6988.72,0.00016986,2]
[351307073,1738511439561,-500.0,0.00016986,2]
[351307075,1738511439571,-1000.0,0.00017,18]
[351307077,1738511439581,-500.0,0.00017121,2]
[351307079,1738511439591,-1183.71,0.00017121,2]
[351307081,1738511439600,-500.0,0.00017121,2]
[351307082,1738511439609,-922.97,0.00017121,2]
[351307084,1738511439618,-500.0,0.00017121,2]
[351307086,1738511439628,-595.48536012,0.00017121,2]
[351307088,1738511439638,-500.0,0.00017121,2]
[351307091,1738511439648,-599.87,0.00017121,2]
[351307093,1738511439657,-500.0,0.00017121,2]
[351307095,1738511439667,-500.0,0.00017121,2]
[351307097,1738511439676,-1005.78,0.00017121,2]
[351307099,1738511439686,-500.0,0.00017122,2]
[351307101,1738511439696,-500.0,0.00017122,2]
[351307103,1738511439705,-2790.84,0.00017122,2]
[351307105,1738511439715,-500.0,0.00017122,2]
[351307107,1738511439724,-366.62675493,0.00017123,2]
[351307108,1738511439734,-500.0,0.00017123,2]
[351307110,1738511439743,-317.52,0.00017123,2]
[351307112,1738511439754,-500.0,0.00017123,2]
[351307114,1738511439763,-500.0,0.00017123,2]
[351307116,1738511439773,-636.73,0.00017123,2]
[351307118,1738511439782,-500.0,0.00017123,2]
[351307120,1738511439792,-500.0,0.00017123,2]
[351307122,1738511439802,-500.0,0.00017123,2]
[351307124,1738511439812,-1791.56,0.00017123,2]
[351307126,1738511439822,-452.83674829,0.00017123,2]
[351307128,1738511439831,-500.0,0.00017123,2]
[351307130,1738511439842,-500.0,0.00017123,2]
[351307132,1738511439853,-500.0,0.00017123,2]
[351307134,1738511439863,-6988.72,0.00017123,2]
[351307136,1738511439872,-500.0,0.00017123,2]
[351307139,1738511439881,-268.082,0.000172,2]
[351307142,1738511439892,-500.0,0.00017258,2]
[351307145,1738511439902,-1183.71,0.00017258,2]
[351307148,1738511439912,-500.0,0.00017258,2]
[351307151,1738511439922,-922.97,0.00017258,2]
[351307154,1738511439932,-500.0,0.00017258,2]
[351307157,1738511439942,-500.0,0.00017258,2]
[351307160,1738511439953,-599.87,0.00017258,2]
[351307164,1738511439963,-500.0,0.00017258,2]
[351307167,1738511439973,-500.0,0.00017258,2]
[351307188,1738511440081,-1005.78,0.00017258,2]
[351307192,1738511440091,-500.0,0.00017259,2]
[351307195,1738511440101,-500.0,0.00017259,2]
[351307197,1738511440110,-2790.84,0.00017259,2]
[351307199,1738511440121,-500.0,0.00017259,2]
[351307201,1738511440131,-500.0,0.0001726,2]
[351307203,1738511440144,-500.0,0.0001726,2]
[351307206,1738511440161,-500.0,0.0001726,2]
[351307207,1738511440171,-636.73,0.0001726,2]
[351307210,1738511440180,-500.0,0.0001726,2]
[351307211,1738511440190,-500.0,0.0001726,2]
[351307214,1738511440199,-500.0,0.0001726,2]
[351307215,1738511440209,-1791.56,0.0001726,2]
[351307217,1738511440219,-500.0,0.0001726,2]
[351307220,1738511440229,-500.0,0.0001726,2]
[351307222,1738511440238,-500.0,0.0001726,2]
[351307224,1738511440251,-6988.72,0.0001726,2]
[351307226,1738511440260,-354.4946044,0.00017342,2]
[351307227,1738511440270,-354.4946044,0.00017342,2]
[351307230,1738511440280,-353.1713514,0.00017342,2]
[351307232,1738511440289,-500.0,0.00017395,2]
[351307234,1738511440299,-1183.71,0.00017395,2]
[351307236,1738511440308,-500.0,0.00017395,2]
[351307238,1738511440318,-922.97,0.00017395,2]
[351307240,1738511440328,-500.0,0.00017395,2]
[351307242,1738511440337,-500.0,0.00017395,2]
[351307244,1738511440347,-599.87,0.00017395,2]
[351307246,1738511440357,-500.0,0.00017395,2]
[351307248,1738511440366,-500.0,0.00017395,2]
[351307249,1738511440375,-1005.78,0.00017395,2]
[351307251,1738511440385,-500.0,0.00017396,2]
[351307253,1738511440394,-500.0,0.00017396,2]
[351307256,1738511440404,-2790.84,0.00017396,2]
[351307257,1738511440414,-500.0,0.00017396,2]
[351307258,1738511440425,-500.0,0.00017397,2]
[351307259,1738511440435,-500.0,0.00017397,2]
[351307260,1738511440444,-500.0,0.00017397,2]
[351307261,1738511440454,-636.73,0.00017397,2]
[351307262,1738511440464,-500.0,0.00017397,2]
[351307263,1738511440475,-500.0,0.00017397,2]
[351307264,1738511440487,-500.0,0.00017397,2]
[351307265,1738511440496,-1791.56,0.00017397,2]
[351307266,1738511440506,-500.0,0.00017397,2]
[351307267,1738511440515,-500.0,0.00017397,2]
[351307268,1738511440526,-500.0,0.00017397,2]
[351307269,1738511440536,-6988.72,0.00017397,2]
[351307270,1738511440545,-295.0,0.0001742,2]
[351307271,1738511440555,-500.0,0.00017532,2]
[351307272,1738511440566,-1183.71,0.00017532,2]
[351307273,1738511440577,-500.0,0.00017532,2]
[351307274,1738511440587,-922.97,0.00017532,2]
[351307275,1738511440597,-500.0,0.00017532,2]
[351307276,1738511440606,-500.0,0.00017532,2]
[351307278,1738511440617,-599.87,0.00017532,2]
[351307280,1738511440626,-500.0,0.00017532,2]
[351307282,1738511440636,-500.0,0.00017532,2]
[351307284,1738511440645,-1005.78,0.00017532,2]
[351307286,1738511440655,-500.0,0.00017533,2]
[351307288,1738511440664,-500.0,0.00017533,2]
[351307290,1738511440673,-2790.84,0.00017533,2]
[351307292,1738511440683,-500.0,0.00017533,2]
[351307294,1738511440693,-500.0,0.00017534,2]
[351307296,1738511440702,-500.0,0.00017534,2]
[351307298,1738511440712,-500.0,0.00017534,2]
[351307300,1738511440722,-636.73,0.00017534,2]
[351307302,1738511440731,-500.0,0.00017534,2]
[351307304,1738511440740,-500.0,0.00017534,2]
[351307306,1738511440749,-500.0,0.00017534,2]
[351307308,1738511440759,-1791.56,0.00017534,2]
[351307310,1738511440768,-500.0,0.00017534,2]
[351307311,1738511440778,-500.0,0.00017534,2]
[351307313,1738511440787,-500.0,0.00017534,2]
[351307315,1738511440797,-6988.72,0.00017534,2]
[351307317,1738511440807,-500.93803007,0.00017568,2]
[351307319,1738511440818,-500.0,0.00017568,2]
[351307321,1738511440827,-507.37392155,0.00017599,2]
[351307323,1738511440836,-105941.63872982,0.000176,3]
[351307326,1738511440850,-4270.02465634,0.000176,3]
[351307330,1738511440885,-464.96799901,0.00016573,2]
[351307620,1738511443474,-35.03200099,0.00016573,2]
[351307622,1738511443487,-276.14266737,0.0001671,2]
[351307624,1738511443496,-396.0,0.00016819,2]
[351307626,1738511443507,-500.0,0.0001726,2]
[351307628,1738511443516,-500.0,0.00017397,2]
[351307630,1738511443527,-500.0,0.00017534,2]
[351307632,1738511443536,-7460.32795395,0.000176,3]
[351307634,1738511443549,-2001.26970089,0.000176,3]
[351307636,1738511443560,-500.0,0.00017655,2]
[351307639,1738511443570,-500.0,0.00017669,2]
[351307641,1738511443580,-1183.71,0.00017669,2]
[351307643,1738511443589,-500.0,0.00017669,2]
[351307645,1738511443598,-922.97,0.00017669,2]
[351307647,1738511443608,-464.34683923,0.00017669,2]
[351307649,1738511443620,-35.65316077,0.00017669,2]
[351307652,1738511443629,-445.52593562,0.00017669,2]
[351307659,1738511443647,-54.47406438,0.00017669,2]
[351307662,1738511443656,-599.87,0.00017669,2]
[351307665,1738511443666,-398.19608304,0.00017669,2]
[351307681,1738511443760,-101.80391696,0.00017669,2]
[351307683,1738511443770,-500.0,0.00017669,2]
[351307685,1738511443779,-1005.78,0.00017669,2]
[351307687,1738511443788,-500.0,0.0001767,2]
[351307689,1738511443797,-500.0,0.0001767,2]
[351307691,1738511443808,-2790.84,0.0001767,2]
[351307693,1738511443818,-500.0,0.0001767,2]
[351307695,1738511443828,-418.61479487,0.00017671,2]